[Event "Titled Tuesday Blitz December 06 Late 2022"]
[White "Kravtsiv, Martyn"]
[Black "Kollars, Dmitrij"]
[WhiteFideId "14113147"]
[BlackFideId "12909572"]
[WhiteElo "2695"]
[BlackElo "2584"]
[Result "1/2-1/2"]
[Round "04"]
[TimeControl "180+1"]
[Date "2022.12.06"]
[WhiteClock "0:00:09"]
[BlackClock "0:00:06"]

1. e4 {[%clk 0:03:00]}  c5 {[%clk 0:03:00]} 2. Nf3 {[%clk 0:03:00]}  Nc6 {[%clk 0:03:00]} 3. d4 {[%clk 0:02:59]}  cxd4 {[%clk 0:03:01]} 4. Nxd4 {[%clk 0:02:59]}  Nf6 {[%clk 0:03:02]} 5. Nc3 {[%clk 0:02:59]}  d6 {[%clk 0:03:01]} 6. Be3 {[%clk 0:02:58]}  Ng4 {[%clk 0:03:00]} 7. Bb5 {[%clk 0:02:56]}  Bd7 {[%clk 0:02:58]} 8. Nxc6 {[%clk 0:02:45]}  bxc6 {[%clk 0:02:41]} 9. Bxc6 {[%clk 0:02:45]}  Nxe3 {[%clk 0:02:41]} 10. Bxd7+ {[%clk 0:02:44]}  Qxd7 {[%clk 0:02:42]} 11. fxe3 {[%clk 0:02:44]}  e6 {[%clk 0:02:35]} 12. O-O {[%clk 0:02:38]}  Be7 {[%clk 0:02:35]} 13. e5 {[%clk 0:02:21]}  d5 {[%clk 0:02:34]} 14. e4 {[%clk 0:02:22]}  d4 {[%clk 0:02:16]} 15. Ne2 {[%clk 0:02:22]}  O-O {[%clk 0:02:11]} 16. Nf4 {[%clk 0:01:56]}  Qb7 {[%clk 0:02:02]} 17. Qg4 {[%clk 0:01:04]}  Qxe4 {[%clk 0:01:56]} 18. Rae1 {[%clk 0:01:04]}  Qf5 {[%clk 0:01:09]} 19. Qxf5 {[%clk 0:00:38]}  exf5 {[%clk 0:01:10]} 20. Nd3 {[%clk 0:00:36]}  g6 {[%clk 0:01:09]} 21. Re2 {[%clk 0:00:36]}  Rfc8 {[%clk 0:01:00]} 22. Rf4 {[%clk 0:00:30]}  Rd8 {[%clk 0:00:39]} 23. Kf1 {[%clk 0:00:26]}  Rac8 {[%clk 0:00:38]} 24. Ke1 {[%clk 0:00:24]}  Bg5 {[%clk 0:00:33]} 25. Rf3 {[%clk 0:00:23]}  Rc6 {[%clk 0:00:27]} 26. Kd1 {[%clk 0:00:20]}  h5 {[%clk 0:00:27]} 27. a3 {[%clk 0:00:19]}  Kg7 {[%clk 0:00:26]} 28. h3 {[%clk 0:00:18]}  h4 {[%clk 0:00:26]} 29. Nf4 {[%clk 0:00:15]}  Bxf4 {[%clk 0:00:20]} 30. Rxf4 {[%clk 0:00:16]}  d3 {[%clk 0:00:21]} 31. cxd3 {[%clk 0:00:16]}  Rxd3+ {[%clk 0:00:22]} 32. Rd2 {[%clk 0:00:16]}  Re3 {[%clk 0:00:17]} 33. Rxh4 {[%clk 0:00:15]}  Rxe5 {[%clk 0:00:18]} 34. Ra4 {[%clk 0:00:15]}  a5 {[%clk 0:00:18]} 35. Rad4 {[%clk 0:00:13]}  Rb6 {[%clk 0:00:17]} 36. b4 {[%clk 0:00:13]}  axb4 {[%clk 0:00:17]} 37. axb4 {[%clk 0:00:14]}  Reb5 {[%clk 0:00:14]} 38. Rb2 {[%clk 0:00:14]}  Kf6 {[%clk 0:00:15]} 39. Kc2 {[%clk 0:00:14]}  Ke5 {[%clk 0:00:15]} 40. Kc3 {[%clk 0:00:15]}  g5 {[%clk 0:00:13]} 41. Rc4 {[%clk 0:00:15]}  Kd5 {[%clk 0:00:10]} 42. Rd2+ {[%clk 0:00:15]}  Ke6 {[%clk 0:00:11]} 43. Rdd4 {[%clk 0:00:15]}  f4 {[%clk 0:00:09]} 44. Rc5 {[%clk 0:00:15]}  Rxc5+ {[%clk 0:00:07]} 45. bxc5 {[%clk 0:00:16]}  Rb1 {[%clk 0:00:08]} 46. Rd2 {[%clk 0:00:15]}  Rc1+ {[%clk 0:00:07]} 47. Kb4 {[%clk 0:00:15]}  f5 {[%clk 0:00:07]} 48. Kb5 {[%clk 0:00:15]}  g4 {[%clk 0:00:06]} 49. c6 {[%clk 0:00:14]}  Ke5 {[%clk 0:00:06]} 50. Kb6 {[%clk 0:00:13]}  Ke4 {[%clk 0:00:06]} 51. c7 {[%clk 0:00:12]}  Ke3 {[%clk 0:00:05]} 52. Rb2 {[%clk 0:00:11]}  f3 {[%clk 0:00:04]} 53. hxg4 {[%clk 0:00:09]}  fxg4 {[%clk 0:00:04]} 54. gxf3 {[%clk 0:00:08]}  gxf3 {[%clk 0:00:05]} 55. Kb7 {[%clk 0:00:08]}  f2 {[%clk 0:00:04]} 56. Rxf2 {[%clk 0:00:09]}  Kxf2 {[%clk 0:00:05]} 57. c8=Q {[%clk 0:00:08]}  Rxc8 {[%clk 0:00:06]} 58. Kxc8 {[%clk 0:00:09]} 1/2-1/2


[Site "https://www.chess.com"]

[Event "Titled Tuesday Blitz December 06 Late 2022"]
[White "Lewicki, Miroslaw"]
[Black "Sjugirov, Sanan"]
[WhiteFideId "1113380"]
[BlackFideId "4189302"]
[WhiteElo "2191"]
[BlackElo "2613"]
[Result "0-1"]
[Round "04"]
[TimeControl "180+1"]
[Date "2022.12.06"]
[WhiteClock "0:00:01"]
[BlackClock "0:00:17"]

1. g3 {[%clk 0:03:00]}  d5 {[%clk 0:02:58]} 2. Bg2 {[%clk 0:03:00]}  e5 {[%clk 0:02:57]} 3. Nf3 {[%clk 0:03:00]}  Bd6 {[%clk 0:02:57]} 4. O-O {[%clk 0:03:01]}  Nf6 {[%clk 0:02:57]} 5. b3 {[%clk 0:03:00]}  O-O {[%clk 0:02:56]} 6. Bb2 {[%clk 0:03:00]}  Re8 {[%clk 0:02:57]} 7. d3 {[%clk 0:03:00]}  c6 {[%clk 0:02:56]} 8. c4 {[%clk 0:03:00]}  Nbd7 {[%clk 0:02:54]} 9. Qc2 {[%clk 0:02:59]}  Nf8 {[%clk 0:02:54]} 10. e4 {[%clk 0:02:59]}  Ng6 {[%clk 0:02:52]} 11. exd5 {[%clk 0:02:56]}  cxd5 {[%clk 0:02:52]} 12. Nbd2 {[%clk 0:02:56]}  Bf5 {[%clk 0:02:47]} 13. h3 {[%clk 0:02:37]}  Rc8 {[%clk 0:02:44]} 14. g4 {[%clk 0:02:34]}  Be6 {[%clk 0:02:39]} 15. Rfe1 {[%clk 0:02:28]}  h5 {[%clk 0:02:30]} 16. Nxe5 {[%clk 0:02:03]}  Bxe5 {[%clk 0:02:26]} 17. Bxe5 {[%clk 0:02:03]}  hxg4 {[%clk 0:02:26]} 18. hxg4 {[%clk 0:01:50]}  Nxe5 {[%clk 0:02:26]} 19. Rxe5 {[%clk 0:01:49]}  Nxg4 {[%clk 0:02:27]} 20. Re2 {[%clk 0:01:41]}  Bf5 {[%clk 0:02:03]} 21. Rxe8+ {[%clk 0:01:14]}  Qxe8 {[%clk 0:02:02]} 22. Nf3 {[%clk 0:01:15]}  dxc4 {[%clk 0:01:57]} 23. bxc4 {[%clk 0:01:15]}  Rd8 {[%clk 0:01:56]} 24. Rd1 {[%clk 0:01:07]}  Qd7 {[%clk 0:01:52]} 25. Qc3 {[%clk 0:01:00]}  Qd6 {[%clk 0:01:44]} 26. d4 {[%clk 0:00:59]}  Be4 {[%clk 0:01:43]} 27. d5 {[%clk 0:00:55]}  Rc8 {[%clk 0:01:29]} 28. Rd4 {[%clk 0:00:29]}  Qf6 {[%clk 0:01:19]} 29. d6 {[%clk 0:00:20]}  b6 {[%clk 0:01:01]} 30. d7 {[%clk 0:00:16]}  Rd8 {[%clk 0:01:00]} 31. Rxe4 {[%clk 0:00:15]}  Qxc3 {[%clk 0:01:00]} 32. Re8+ {[%clk 0:00:16]}  Kh7 {[%clk 0:00:59]} 33. Rxd8 {[%clk 0:00:16]}  Qc1+ {[%clk 0:00:49]} 34. Bf1 {[%clk 0:00:15]}  Qd1 {[%clk 0:00:49]} 35. Kg2 {[%clk 0:00:07]}  Qd6 {[%clk 0:00:24]} 36. c5 {[%clk 0:00:06]}  bxc5 {[%clk 0:00:21]} 37. Bb5 {[%clk 0:00:06]}  Nf6 {[%clk 0:00:19]} 38. Rf8 {[%clk 0:00:01]}  Qxf8 {[%clk 0:00:17]} 0-1


[Site "https://www.chess.com"]

[Event "Titled Tuesday Blitz December 06 Late 2022"]
[White "Manukyan, Sargis A."]
[Black "Mikhailov, Viacheslav"]
[WhiteFideId "13303970"]
[BlackFideId "4187369"]
[WhiteElo "2545"]
[BlackElo "2704"]
[Result "1-0"]
[Round "04"]
[TimeControl "180+1"]
[Date "2022.12.07"]
[WhiteClock "0:02:49"]
[BlackClock "0:02:53"]

1. d4 {[%clk 0:02:56]}  Nf6 {[%clk 0:02:57]} 2. c4 {[%clk 0:02:56]}  g6 {[%clk 0:02:57]} 3. Nc3 {[%clk 0:02:57]}  Bg7 {[%clk 0:02:57]} 4. Nf3 {[%clk 0:02:57]}  O-O {[%clk 0:02:58]} 5. h3 {[%clk 0:02:57]}  d6 {[%clk 0:02:58]} 6. Bf4 {[%clk 0:02:57]}  c5 {[%clk 0:02:57]} 7. d5 {[%clk 0:02:56]}  a6 {[%clk 0:02:55]} 8. e3 {[%clk 0:02:56]}  b5 {[%clk 0:02:54]} 9. cxb5 {[%clk 0:02:57]}  axb5 {[%clk 0:02:55]} 10. Bxb5 {[%clk 0:02:57]}  Qa5 {[%clk 0:02:54]} 11. O-O {[%clk 0:02:57]}  Ne4 {[%clk 0:02:54]} 12. Bc4 {[%clk 0:02:50]}  Qxc3 {[%clk 0:02:53]} 13. bxc3 {[%clk 0:02:49]} 1-0


[Site "https://www.chess.com"]

[Event "Titled Tuesday Blitz December 06 Late 2022"]
[White "Marcolino, Daniel Mattos"]
[Black "Jaskolka, Tomasz"]
[WhiteFideId "2106841"]
[BlackFideId "1170791"]
[WhiteElo "2159"]
[BlackElo "2126"]
[Result "0-1"]
[Round "04"]
[TimeControl "180+1"]
[Date "2022.12.07"]
[WhiteClock "0:00:15"]
[BlackClock "0:00:02"]

1. d4 {[%clk 0:03:00]}  d5 {[%clk 0:02:57]} 2. Nf3 {[%clk 0:03:01]}  c6 {[%clk 0:02:58]} 3. g3 {[%clk 0:03:01]}  Nf6 {[%clk 0:02:58]} 4. Bg2 {[%clk 0:03:01]}  Bf5 {[%clk 0:02:58]} 5. c4 {[%clk 0:03:00]}  e6 {[%clk 0:02:59]} 6. Nc3 {[%clk 0:03:01]}  Be7 {[%clk 0:02:56]} 7. Qb3 {[%clk 0:03:01]}  Qb6 {[%clk 0:02:56]} 8. c5 {[%clk 0:03:01]}  Qxb3 {[%clk 0:02:53]} 9. axb3 {[%clk 0:03:02]}  Nbd7 {[%clk 0:02:52]} 10. b4 {[%clk 0:03:02]}  O-O {[%clk 0:02:48]} 11. b5 {[%clk 0:03:01]}  e5 {[%clk 0:02:30]} 12. e3 {[%clk 0:02:50]}  Ne4 {[%clk 0:02:22]} 13. bxc6 {[%clk 0:02:47]}  bxc6 {[%clk 0:02:22]} 14. Bd2 {[%clk 0:02:24]}  exd4 {[%clk 0:02:18]} 15. exd4 {[%clk 0:02:22]}  Bf6 {[%clk 0:02:08]} 16. Ra6 {[%clk 0:02:07]}  Rac8 {[%clk 0:01:26]} 17. Be3 {[%clk 0:01:30]}  Rc7 {[%clk 0:01:11]} 18. O-O {[%clk 0:01:30]}  Nxc3 {[%clk 0:01:04]} 19. bxc3 {[%clk 0:01:30]}  Bd3 {[%clk 0:01:05]} 20. Rfa1 {[%clk 0:01:28]}  Bxa6 {[%clk 0:01:04]} 21. Rxa6 {[%clk 0:01:29]}  Rfc8 {[%clk 0:01:03]} 22. Bf1 {[%clk 0:01:18]}  g6 {[%clk 0:00:56]} 23. c4 {[%clk 0:01:15]}  dxc4 {[%clk 0:00:24]} 24. Bxc4 {[%clk 0:01:16]}  Be7 {[%clk 0:00:20]} 25. Kg2 {[%clk 0:01:15]}  Bf8 {[%clk 0:00:21]} 26. Ra3 {[%clk 0:00:58]}  Nf6 {[%clk 0:00:20]} 27. Bf4 {[%clk 0:00:57]}  Rd7 {[%clk 0:00:19]} 28. Be5 {[%clk 0:00:56]}  Nd5 {[%clk 0:00:19]} 29. Bxd5 {[%clk 0:00:54]}  Rxd5 {[%clk 0:00:19]} 30. Rxa7 {[%clk 0:00:54]}  Bg7 {[%clk 0:00:14]} 31. Bxg7 {[%clk 0:00:52]}  Kxg7 {[%clk 0:00:15]} 32. Ne5 {[%clk 0:00:52]}  Rxd4 {[%clk 0:00:14]} 33. Rxf7+ {[%clk 0:00:52]}  Kg8 {[%clk 0:00:14]} 34. Rb7 {[%clk 0:00:50]}  Re4 {[%clk 0:00:06]} 35. f4 {[%clk 0:00:49]}  g5 {[%clk 0:00:05]} 36. Kf3 {[%clk 0:00:47]}  Re1 {[%clk 0:00:05]} 37. Rb6 {[%clk 0:00:44]}  gxf4 {[%clk 0:00:05]} 38. gxf4 {[%clk 0:00:45]}  Rf8 {[%clk 0:00:02]} 39. Kg4 {[%clk 0:00:40]}  Rg1+ {[%clk 0:00:02]} 40. Kf3 {[%clk 0:00:37]}  Rf1+ {[%clk 0:00:02]} 41. Kg3 {[%clk 0:00:34]}  R8xf4 {[%clk 0:00:01]} 42. Rxc6 {[%clk 0:00:32]}  Rf5 {[%clk 0:00:02]} 43. Ng4 {[%clk 0:00:28]}  Rg1+ {[%clk 0:00:02]} 44. Kh4 {[%clk 0:00:26]}  Rf4 {[%clk 0:00:02]} 45. Rc8+ {[%clk 0:00:23]}  Kf7 {[%clk 0:00:02]} 46. Rc7+ {[%clk 0:00:21]}  Kg6 {[%clk 0:00:02]} 47. Rc6+ {[%clk 0:00:20]}  Kf5 {[%clk 0:00:03]} 48. Rf6+ {[%clk 0:00:19]}  Ke4 {[%clk 0:00:03]} 49. Rxf4+ {[%clk 0:00:19]}  Kxf4 {[%clk 0:00:04]} 50. Nf6 {[%clk 0:00:18]}  Rg6 {[%clk 0:00:03]} 51. Nxh7 {[%clk 0:00:15]}  Rh6# {[%clk 0:00:02]} 0-1


[Site "https://www.chess.com"]

[Event "Titled Tuesday Blitz December 06 Late 2022"]
[White "Mendez Fortes, Eduardo Jesus"]
[Black "Goltsev, Dmitry"]
[WhiteFideId "3502376"]
[BlackFideId "24176710"]
[WhiteElo "2307"]
[BlackElo "2327"]
[Result "0-1"]
[Round "04"]
[TimeControl "180+1"]
[Date "2022.12.06"]
[WhiteClock "0:00:01"]
[BlackClock "0:00:23"]

1. e4 {[%clk 0:03:00]}  e6 {[%clk 0:02:59]} 2. d4 {[%clk 0:03:00]}  d5 {[%clk 0:03:00]} 3. Nd2 {[%clk 0:03:01]}  c5 {[%clk 0:03:00]} 4. exd5 {[%clk 0:03:01]}  exd5 {[%clk 0:03:01]} 5. Ngf3 {[%clk 0:03:01]}  Nf6 {[%clk 0:03:01]} 6. Bb5+ {[%clk 0:02:58]}  Nc6 {[%clk 0:03:01]} 7. O-O {[%clk 0:02:56]}  Be7 {[%clk 0:02:59]} 8. dxc5 {[%clk 0:02:56]}  Bxc5 {[%clk 0:02:58]} 9. Nb3 {[%clk 0:02:57]}  Bb6 {[%clk 0:02:58]} 10. c3 {[%clk 0:02:57]}  O-O {[%clk 0:02:57]} 11. h3 {[%clk 0:02:52]}  Qd6 {[%clk 0:02:55]} 12. Bg5 {[%clk 0:02:43]}  h6 {[%clk 0:02:55]} 13. Bxf6 {[%clk 0:02:37]}  Qxf6 {[%clk 0:02:55]} 14. Nbd4 {[%clk 0:02:36]}  Qd6 {[%clk 0:02:51]} 15. Re1 {[%clk 0:02:21]}  Bd7 {[%clk 0:02:49]} 16. Bf1 {[%clk 0:02:19]}  Rae8 {[%clk 0:02:48]} 17. Rxe8 {[%clk 0:02:17]}  Rxe8 {[%clk 0:02:47]} 18. g3 {[%clk 0:02:12]}  Re4 {[%clk 0:02:40]} 19. Bg2 {[%clk 0:02:09]}  a6 {[%clk 0:02:23]} 20. Qd2 {[%clk 0:02:07]}  Ne7 {[%clk 0:02:13]} 21. Rd1 {[%clk 0:02:02]}  Ng6 {[%clk 0:02:04]} 22. Kh1 {[%clk 0:01:46]}  Qe7 {[%clk 0:01:54]} 23. Kg1 {[%clk 0:01:30]}  Bc5 {[%clk 0:01:42]} 24. Kh2 {[%clk 0:01:29]}  h5 {[%clk 0:01:40]} 25. Bf1 {[%clk 0:01:28]}  h4 {[%clk 0:01:38]} 26. Bd3 {[%clk 0:01:28]}  hxg3+ {[%clk 0:01:37]} 27. fxg3 {[%clk 0:01:26]}  Re3 {[%clk 0:01:35]} 28. Bxg6 {[%clk 0:01:15]}  fxg6 {[%clk 0:01:36]} 29. Re1 {[%clk 0:01:05]}  Re4 {[%clk 0:01:35]} 30. Nb3 {[%clk 0:00:58]}  Be3 {[%clk 0:01:21]} 31. Qxd5+ {[%clk 0:00:54]}  Kh8 {[%clk 0:01:21]} 32. Ng5 {[%clk 0:00:48]}  Bg1+ {[%clk 0:01:11]} 33. Kg2 {[%clk 0:00:22]}  Bc6 {[%clk 0:01:05]} 34. Qxc6 {[%clk 0:00:14]}  bxc6 {[%clk 0:01:01]} 35. Nxe4 {[%clk 0:00:14]}  Bb6 {[%clk 0:00:59]} 36. Re2 {[%clk 0:00:15]}  a5 {[%clk 0:00:56]} 37. h4 {[%clk 0:00:14]}  a4 {[%clk 0:00:54]} 38. Nbd2 {[%clk 0:00:13]}  Bc7 {[%clk 0:00:54]} 39. Nf3 {[%clk 0:00:12]}  Qe6 {[%clk 0:00:53]} 40. Nfg5 {[%clk 0:00:12]}  Qxa2 {[%clk 0:00:48]} 41. Rf2 {[%clk 0:00:10]}  Kg8 {[%clk 0:00:46]} 42. Kh2 {[%clk 0:00:08]}  a3 {[%clk 0:00:38]} 43. bxa3 {[%clk 0:00:08]}  Qxa3 {[%clk 0:00:39]} 44. Rd2 {[%clk 0:00:07]}  Qe7 {[%clk 0:00:37]} 45. Kg2 {[%clk 0:00:04]}  c5 {[%clk 0:00:33]} 46. Rf2 {[%clk 0:00:04]}  Qe5 {[%clk 0:00:31]} 47. Rf7 {[%clk 0:00:04]}  Bd8 {[%clk 0:00:25]} 48. Ra7 {[%clk 0:00:02]}  Bxg5 {[%clk 0:00:24]} 49. Ra8+ {[%clk 0:00:01]}  Kf7 {[%clk 0:00:23]} 0-1


[Site "https://www.chess.com"]

[Event "Titled Tuesday Blitz December 06 Late 2022"]
[White "Moral Garcia, Serafin"]
[Black "Freile Martin, Javier"]
[WhiteFideId "2201925"]
[BlackFideId "3600165"]
[WhiteElo "2259"]
[BlackElo "2331"]
[Result "1-0"]
[Round "04"]
[TimeControl "180+1"]
[Date "2022.12.07"]
[WhiteClock "0:01:43"]
[BlackClock "0:00:15"]

1. e4 {[%clk 0:03:00]}  c5 {[%clk 0:02:59]} 2. Nf3 {[%clk 0:03:00]}  d6 {[%clk 0:02:59]} 3. d4 {[%clk 0:03:00]}  cxd4 {[%clk 0:02:59]} 4. Nxd4 {[%clk 0:03:01]}  Nf6 {[%clk 0:02:59]} 5. Nc3 {[%clk 0:02:59]}  Nc6 {[%clk 0:02:59]} 6. Bg5 {[%clk 0:02:58]}  Bd7 {[%clk 0:02:59]} 7. Qd2 {[%clk 0:02:57]}  Rc8 {[%clk 0:02:58]} 8. O-O-O {[%clk 0:02:57]}  Nxd4 {[%clk 0:02:58]} 9. Qxd4 {[%clk 0:02:57]}  Qa5 {[%clk 0:02:58]} 10. Bd2 {[%clk 0:02:57]}  Qc5 {[%clk 0:02:55]} 11. Qxc5 {[%clk 0:02:56]}  Rxc5 {[%clk 0:02:55]} 12. f3 {[%clk 0:02:55]}  a6 {[%clk 0:02:52]} 13. Kb1 {[%clk 0:02:55]}  e6 {[%clk 0:02:52]} 14. Be3 {[%clk 0:02:54]}  Rc8 {[%clk 0:02:50]} 15. Bf4 {[%clk 0:02:54]}  e5 {[%clk 0:02:48]} 16. Bg5 {[%clk 0:02:54]}  Be7 {[%clk 0:02:32]} 17. Bxf6 {[%clk 0:02:53]}  gxf6 {[%clk 0:02:30]} 18. Nd5 {[%clk 0:02:51]}  Bd8 {[%clk 0:02:29]} 19. Ne3 {[%clk 0:02:49]}  Be7 {[%clk 0:02:13]} 20. Bc4 {[%clk 0:02:46]}  Be6 {[%clk 0:02:13]} 21. Bd5 {[%clk 0:02:43]}  Rc7 {[%clk 0:02:07]} 22. Rd3 {[%clk 0:02:41]}  Rg8 {[%clk 0:02:03]} 23. g3 {[%clk 0:02:40]}  h5 {[%clk 0:01:47]} 24. a4 {[%clk 0:02:39]}  h4 {[%clk 0:01:44]} 25. g4 {[%clk 0:02:38]}  h3 {[%clk 0:01:40]} 26. Rb3 {[%clk 0:02:28]}  Bc8 {[%clk 0:01:34]} 27. Rd1 {[%clk 0:02:26]}  Bf8 {[%clk 0:01:21]} 28. Rdd3 {[%clk 0:02:21]}  Bh6 {[%clk 0:01:10]} 29. Rdc3 {[%clk 0:02:20]}  Kd8 {[%clk 0:01:03]} 30. Rxc7 {[%clk 0:02:18]}  Kxc7 {[%clk 0:01:02]} 31. Bxf7 {[%clk 0:02:17]}  Rg7 {[%clk 0:00:58]} 32. Bd5 {[%clk 0:02:17]}  Bxe3 {[%clk 0:00:55]} 33. Rxe3 {[%clk 0:02:16]}  Bd7 {[%clk 0:00:54]} 34. Rc3+ {[%clk 0:02:12]}  Kb8 {[%clk 0:00:52]} 35. a5 {[%clk 0:02:11]}  Bb5 {[%clk 0:00:50]} 36. Bc4 {[%clk 0:02:04]}  Bxc4 {[%clk 0:00:41]} 37. Rxc4 {[%clk 0:02:03]}  Rd7 {[%clk 0:00:40]} 38. Rc3 {[%clk 0:01:59]}  d5 {[%clk 0:00:40]} 39. Rd3 {[%clk 0:02:00]}  d4 {[%clk 0:00:40]} 40. c3 {[%clk 0:02:00]}  Kc7 {[%clk 0:00:39]} 41. cxd4 {[%clk 0:02:00]}  exd4 {[%clk 0:00:38]} 42. Kc2 {[%clk 0:01:58]}  Kc6 {[%clk 0:00:39]} 43. Rb3 {[%clk 0:01:57]}  Kd6 {[%clk 0:00:33]} 44. f4 {[%clk 0:01:49]}  Rg7 {[%clk 0:00:28]} 45. Rg3 {[%clk 0:01:49]}  Kc5 {[%clk 0:00:23]} 46. Kd3 {[%clk 0:01:46]}  Kb4 {[%clk 0:00:21]} 47. Kxd4 {[%clk 0:01:45]}  Kxa5 {[%clk 0:00:20]} 48. Kd5 {[%clk 0:01:46]}  Kb4 {[%clk 0:00:20]} 49. Ke6 {[%clk 0:01:46]}  b5 {[%clk 0:00:19]} 50. Kxf6 {[%clk 0:01:46]}  Rg8 {[%clk 0:00:19]} 51. g5 {[%clk 0:01:45]}  a5 {[%clk 0:00:19]} 52. g6 {[%clk 0:01:45]}  a4 {[%clk 0:00:19]} 53. Rxh3 {[%clk 0:01:44]}  Rf8+ {[%clk 0:00:18]} 54. Kg5 {[%clk 0:01:44]}  Kc4 {[%clk 0:00:18]} 55. f5 {[%clk 0:01:44]}  b4 {[%clk 0:00:18]} 56. f6 {[%clk 0:01:44]}  a3 {[%clk 0:00:17]} 57. bxa3 {[%clk 0:01:43]}  b3 {[%clk 0:00:18]} 58. Rxb3 {[%clk 0:01:43]}  Kxb3 {[%clk 0:00:18]} 59. f7 {[%clk 0:01:44]}  Kxa3 {[%clk 0:00:16]} 60. Kf6 {[%clk 0:01:44]}  Rh8 {[%clk 0:00:16]} 61. g7 {[%clk 0:01:44]}  Rh6+ {[%clk 0:00:15]} 62. Kg5 {[%clk 0:01:43]}  Rxh2 {[%clk 0:00:15]} 63. f8=Q+ {[%clk 0:01:43]} 1-0


[Site "https://www.chess.com"]

[Event "Titled Tuesday Blitz December 06 Late 2022"]
[White "Nasuta, Grzegorz"]
[Black "Omelja, Artem"]
[WhiteFideId "1141686"]
[BlackFideId "14119846"]
[WhiteElo "2441"]
[BlackElo "2404"]
[Result "1-0"]
[Round "04"]
[TimeControl "180+1"]
[Date "2022.12.06"]
[WhiteClock "0:00:20"]
[BlackClock "0:00:08"]

1. e4 {[%clk 0:03:00]}  c5 {[%clk 0:02:56]} 2. Nf3 {[%clk 0:03:00]}  Nc6 {[%clk 0:02:56]} 3. Bb5 {[%clk 0:03:00]}  g6 {[%clk 0:02:56]} 4. Bxc6 {[%clk 0:03:00]}  dxc6 {[%clk 0:02:56]} 5. d3 {[%clk 0:03:00]}  Bg7 {[%clk 0:02:56]} 6. h3 {[%clk 0:03:00]}  Qc7 {[%clk 0:02:54]} 7. Nc3 {[%clk 0:02:57]}  e5 {[%clk 0:02:52]} 8. Be3 {[%clk 0:02:56]}  b6 {[%clk 0:02:52]} 9. O-O {[%clk 0:02:53]}  Nf6 {[%clk 0:02:52]} 10. Qd2 {[%clk 0:02:49]}  Nd7 {[%clk 0:02:51]} 11. Bh6 {[%clk 0:02:48]}  O-O {[%clk 0:02:51]} 12. Nh2 {[%clk 0:02:46]}  Re8 {[%clk 0:02:50]} 13. Bxg7 {[%clk 0:02:46]}  Kxg7 {[%clk 0:02:50]} 14. Ng4 {[%clk 0:02:44]}  h5 {[%clk 0:02:31]} 15. Qh6+ {[%clk 0:02:28]}  Kg8 {[%clk 0:02:31]} 16. Ne3 {[%clk 0:02:28]}  Qd6 {[%clk 0:02:31]} 17. f4 {[%clk 0:02:10]}  exf4 {[%clk 0:01:55]} 18. Rxf4 {[%clk 0:02:09]}  Qd4 {[%clk 0:01:35]} 19. Rf2 {[%clk 0:02:01]}  Nf8 {[%clk 0:01:26]} 20. Raf1 {[%clk 0:01:57]}  Re7 {[%clk 0:01:14]} 21. Ne2 {[%clk 0:01:09]}  Qg7 {[%clk 0:01:13]} 22. Qg5 {[%clk 0:01:05]}  Rb7 {[%clk 0:00:56]} 23. Ng3 {[%clk 0:00:34]}  Ne6 {[%clk 0:00:48]} 24. Qh4 {[%clk 0:00:30]}  Nf8 {[%clk 0:00:17]} 25. Nc4 {[%clk 0:00:26]}  Be6 {[%clk 0:00:15]} 26. Nd6 {[%clk 0:00:17]}  Rd7 {[%clk 0:00:15]} 27. Ndf5 {[%clk 0:00:18]}  gxf5 {[%clk 0:00:13]} 28. exf5 {[%clk 0:00:18]}  Bd5 {[%clk 0:00:12]} 29. Nxh5 {[%clk 0:00:18]}  Qd4 {[%clk 0:00:12]} 30. Nf6+ {[%clk 0:00:18]}  Kg7 {[%clk 0:00:12]} 31. Qg5+ {[%clk 0:00:18]}  Ng6 {[%clk 0:00:11]} 32. Nxd7 {[%clk 0:00:16]}  Bxa2 {[%clk 0:00:06]} 33. fxg6 {[%clk 0:00:15]}  Qxd7 {[%clk 0:00:06]} 34. gxf7+ {[%clk 0:00:12]}  Kf8 {[%clk 0:00:06]} 35. Qg8+ {[%clk 0:00:11]}  Ke7 {[%clk 0:00:07]} 36. f8=Q+ {[%clk 0:00:12]}  Rxf8 {[%clk 0:00:07]} 37. Qxf8+ {[%clk 0:00:13]}  Ke6 {[%clk 0:00:07]} 38. Qf5+ {[%clk 0:00:11]}  Kd6 {[%clk 0:00:07]} 39. Qxd7+ {[%clk 0:00:12]}  Kxd7 {[%clk 0:00:07]} 40. b3 {[%clk 0:00:13]}  c4 {[%clk 0:00:07]} 41. Ra1 {[%clk 0:00:13]}  cxb3 {[%clk 0:00:07]} 42. cxb3 {[%clk 0:00:12]}  Bxb3 {[%clk 0:00:08]} 43. Rxa7+ {[%clk 0:00:13]}  Kd6 {[%clk 0:00:08]} 44. Rb2 {[%clk 0:00:13]}  Bd5 {[%clk 0:00:08]} 45. Rxb6 {[%clk 0:00:13]}  Kc5 {[%clk 0:00:09]} 46. Rb8 {[%clk 0:00:14]}  Kd4 {[%clk 0:00:09]} 47. Rd8 {[%clk 0:00:14]}  Kxd3 {[%clk 0:00:09]} 48. Rxd5+ {[%clk 0:00:14]}  cxd5 {[%clk 0:00:10]} 49. h4 {[%clk 0:00:15]}  Ke4 {[%clk 0:00:10]} 50. h5 {[%clk 0:00:16]}  d4 {[%clk 0:00:10]} 51. h6 {[%clk 0:00:16]}  d3 {[%clk 0:00:11]} 52. Rd7 {[%clk 0:00:17]}  Kf5 {[%clk 0:00:10]} 53. Rxd3 {[%clk 0:00:17]}  Kg5 {[%clk 0:00:11]} 54. Rg3+ {[%clk 0:00:17]}  Kf4 {[%clk 0:00:10]} 55. Rf3+ {[%clk 0:00:17]}  Ke4 {[%clk 0:00:07]} 56. h7 {[%clk 0:00:17]}  Kd5 {[%clk 0:00:08]} 57. h8=Q {[%clk 0:00:18]}  Kc4 {[%clk 0:00:08]} 58. Qh4+ {[%clk 0:00:18]}  Kd5 {[%clk 0:00:08]} 59. Rf5+ {[%clk 0:00:19]}  Ke6 {[%clk 0:00:09]} 60. Qf6+ {[%clk 0:00:19]}  Kd7 {[%clk 0:00:10]} 61. Rg5 {[%clk 0:00:19]}  Kc7 {[%clk 0:00:10]} 62. Rg7+ {[%clk 0:00:19]}  Kc8 {[%clk 0:00:08]} 63. Qf8# {[%clk 0:00:20]} 1-0


[Site "https://www.chess.com"]